[Event "Titled Tuesday Blitz July 05 Late 2022"]
[White "Sjugirov, Sanan"]
[Black "Oparin, Grigoriy"]
[WhiteFideId "4189302"]
[BlackFideId "24125890"]
[WhiteElo "2609"]
[BlackElo "2639"]
[Result "0-1"]
[Round "05"]
[TimeControl "180+1"]
[Date "2022.07.05"]
[WhiteClock "0:00:07"]
[BlackClock "0:00:12"]

1. e4 {[%clk 0:03:00]}  e5 {[%clk 0:02:59]} 2. Nf3 {[%clk 0:03:00]}  Nc6 {[%clk 0:03:00]} 3. Bb5 {[%clk 0:03:01]}  Nf6 {[%clk 0:03:00]} 4. d3 {[%clk 0:03:00]}  d6 {[%clk 0:02:57]} 5. O-O {[%clk 0:02:58]}  a6 {[%clk 0:02:58]} 6. Bxc6+ {[%clk 0:02:57]}  bxc6 {[%clk 0:02:59]} 7. Re1 {[%clk 0:02:49]}  Nd7 {[%clk 0:02:59]} 8. d4 {[%clk 0:02:47]}  a5 {[%clk 0:02:56]} 9. c4 {[%clk 0:02:41]}  Be7 {[%clk 0:02:53]} 10. Nc3 {[%clk 0:02:40]}  O-O {[%clk 0:02:53]} 11. dxe5 {[%clk 0:02:35]}  dxe5 {[%clk 0:02:45]} 12. Be3 {[%clk 0:02:33]}  Bb4 {[%clk 0:02:34]} 13. Qc2 {[%clk 0:02:31]}  Qe7 {[%clk 0:02:34]} 14. Red1 {[%clk 0:02:26]}  Re8 {[%clk 0:02:31]} 15. Na4 {[%clk 0:02:24]}  Nc5 {[%clk 0:01:39]} 16. a3 {[%clk 0:02:16]}  Nxa4 {[%clk 0:01:39]} 17. axb4 {[%clk 0:02:14]}  Nb6 {[%clk 0:01:40]} 18. bxa5 {[%clk 0:02:03]}  Nd7 {[%clk 0:01:40]} 19. Qc3 {[%clk 0:01:54]}  Ba6 {[%clk 0:01:36]} 20. b4 {[%clk 0:01:53]}  f6 {[%clk 0:01:36]} 21. Nd2 {[%clk 0:01:51]}  Qf7 {[%clk 0:01:33]} 22. Rdc1 {[%clk 0:01:51]}  Nf8 {[%clk 0:01:27]} 23. Nb3 {[%clk 0:01:48]}  Ne6 {[%clk 0:01:27]} 24. Rab1 {[%clk 0:01:36]}  Red8 {[%clk 0:01:26]} 25. Nd2 {[%clk 0:01:16]}  Rab8 {[%clk 0:01:24]} 26. Nf1 {[%clk 0:01:13]}  h5 {[%clk 0:01:22]} 27. h4 {[%clk 0:01:09]}  Qg6 {[%clk 0:01:18]} 28. f3 {[%clk 0:01:03]}  Kh7 {[%clk 0:01:16]} 29. Rd1 {[%clk 0:00:48]}  Qe8 {[%clk 0:01:07]} 30. Ng3 {[%clk 0:00:48]}  g6 {[%clk 0:00:59]} 31. Ne2 {[%clk 0:00:34]}  Rxd1+ {[%clk 0:00:58]} 32. Rxd1 {[%clk 0:00:34]}  Qe7 {[%clk 0:00:59]} 33. Rb1 {[%clk 0:00:29]}  Qf7 {[%clk 0:00:55]} 34. Ng3 {[%clk 0:00:24]}  Qd7 {[%clk 0:00:49]} 35. Nf1 {[%clk 0:00:15]}  Rd8 {[%clk 0:00:49]} 36. Qb3 {[%clk 0:00:12]}  Rb8 {[%clk 0:00:42]} 37. Qc3 {[%clk 0:00:05]}  Rd8 {[%clk 0:00:42]} 38. Qb3 {[%clk 0:00:05]}  Rb8 {[%clk 0:00:42]} 39. Kh2 {[%clk 0:00:06]}  Qe7 {[%clk 0:00:37]} 40. Qc3 {[%clk 0:00:06]}  Qd7 {[%clk 0:00:29]} 41. Ng3 {[%clk 0:00:06]}  Rd8 {[%clk 0:00:27]} 42. Qb3 {[%clk 0:00:05]}  Rb8 {[%clk 0:00:26]} 43. Ba7 {[%clk 0:00:04]}  Rb7 {[%clk 0:00:26]} 44. Bf2 {[%clk 0:00:04]}  Rb8 {[%clk 0:00:26]} 45. Be3 {[%clk 0:00:05]}  Qe7 {[%clk 0:00:26]} 46. Kg1 {[%clk 0:00:05]}  Qd7 {[%clk 0:00:26]} 47. Rd1 {[%clk 0:00:05]}  Qe7 {[%clk 0:00:26]} 48. Rb1 {[%clk 0:00:04]}  Qd7 {[%clk 0:00:27]} 49. Qc3 {[%clk 0:00:03]}  Qe7 {[%clk 0:00:26]} 50. b5 {[%clk 0:00:03]}  cxb5 {[%clk 0:00:26]} 51. cxb5 {[%clk 0:00:03]}  Rxb5 {[%clk 0:00:26]} 52. Rxb5 {[%clk 0:00:03]}  Bxb5 {[%clk 0:00:27]} 53. Qb3 {[%clk 0:00:03]}  c6 {[%clk 0:00:27]} 54. Qa2 {[%clk 0:00:02]}  Nc7 {[%clk 0:00:25]} 55. Kh2 {[%clk 0:00:02]}  Na6 {[%clk 0:00:25]} 56. Qd2 {[%clk 0:00:02]}  c5 {[%clk 0:00:19]} 57. f4 {[%clk 0:00:02]}  exf4 {[%clk 0:00:17]} 58. Bxf4 {[%clk 0:00:03]}  c4 {[%clk 0:00:17]} 59. Qd5 {[%clk 0:00:04]}  Qd7 {[%clk 0:00:17]} 60. Qa8 {[%clk 0:00:03]}  c3 {[%clk 0:00:14]} 61. e5 {[%clk 0:00:04]}  Qc6 {[%clk 0:00:12]} 62. Qf8 {[%clk 0:00:03]}  Qe8 {[%clk 0:00:12]} 63. Qxf6 {[%clk 0:00:03]}  Bc6 {[%clk 0:00:07]} 64. e6 {[%clk 0:00:03]}  Nc5 {[%clk 0:00:07]} 65. Be5 {[%clk 0:00:03]}  Nxe6 {[%clk 0:00:08]} 66. Nf5 {[%clk 0:00:03]}  gxf5 {[%clk 0:00:07]} 67. Qxf5+ {[%clk 0:00:02]}  Qg6 {[%clk 0:00:07]} 68. Qxg6+ {[%clk 0:00:03]}  Kxg6 {[%clk 0:00:07]} 69. Bxc3 {[%clk 0:00:04]}  Bb5 {[%clk 0:00:08]} 70. Kg3 {[%clk 0:00:04]}  Kf5 {[%clk 0:00:08]} 71. Kf3 {[%clk 0:00:05]}  Bc6+ {[%clk 0:00:08]} 72. Kf2 {[%clk 0:00:05]}  Nf4 {[%clk 0:00:09]} 73. g3 {[%clk 0:00:05]}  Nd3+ {[%clk 0:00:09]} 74. Ke3 {[%clk 0:00:06]}  Nc5 {[%clk 0:00:10]} 75. Kd4 {[%clk 0:00:05]}  Ne6+ {[%clk 0:00:10]} 76. Ke3 {[%clk 0:00:05]}  Bb7 {[%clk 0:00:10]} 77. Be1 {[%clk 0:00:06]}  Kg4 {[%clk 0:00:10]} 78. Kd3 {[%clk 0:00:05]}  Ng7 {[%clk 0:00:10]} 79. Kd4 {[%clk 0:00:03]}  Nf5+ {[%clk 0:00:11]} 80. Kc5 {[%clk 0:00:04]}  Nxg3 {[%clk 0:00:11]} 81. Kb6 {[%clk 0:00:05]}  Bf3 {[%clk 0:00:11]} 82. a6 {[%clk 0:00:05]}  Nf5 {[%clk 0:00:11]} 83. Kc7 {[%clk 0:00:05]}  Nxh4 {[%clk 0:00:10]} 84. a7 {[%clk 0:00:05]}  Nf5 {[%clk 0:00:11]} 85. Kb8 {[%clk 0:00:05]}  Ng3 {[%clk 0:00:11]} 86. Bf2 {[%clk 0:00:05]}  h4 {[%clk 0:00:11]} 87. Bg1 {[%clk 0:00:05]}  Nf1 {[%clk 0:00:09]} 88. Bc5 {[%clk 0:00:05]}  h3 {[%clk 0:00:10]} 89. Bg1 {[%clk 0:00:04]}  Kg3 {[%clk 0:00:10]} 90. Bc5 {[%clk 0:00:04]}  Kg2 {[%clk 0:00:10]} 91. Bd6 {[%clk 0:00:05]}  Ng3 {[%clk 0:00:10]} 92. Be5 {[%clk 0:00:05]}  h2 {[%clk 0:00:11]} 93. Bxg3 {[%clk 0:00:06]}  Kxg3 {[%clk 0:00:11]} 94. a8=Q {[%clk 0:00:07]}  Bxa8 {[%clk 0:00:12]} 0-1


[Site "https://www.chess.com"]

[Event "Titled Tuesday Blitz July 05 Late 2022"]
[White "So, Wesley"]
[Black "Huber, Benedikt"]
[WhiteFideId "5202213"]
[BlackFideId "12923583"]
[WhiteElo "2763"]
[BlackElo "1979"]
[Result "1-0"]
[Round "05"]
[TimeControl "180+1"]
[Date "2022.07.05"]
[WhiteClock "0:00:38"]
[BlackClock "0:00:05"]

1. d4 {[%clk 0:03:00]}  Nf6 {[%clk 0:02:58]} 2. c4 {[%clk 0:03:01]}  e6 {[%clk 0:02:58]} 3. Nc3 {[%clk 0:03:01]}  Bb4 {[%clk 0:02:58]} 4. e3 {[%clk 0:03:02]}  d5 {[%clk 0:02:57]} 5. a3 {[%clk 0:03:01]}  Bxc3+ {[%clk 0:02:56]} 6. bxc3 {[%clk 0:03:02]}  c6 {[%clk 0:02:56]} 7. cxd5 {[%clk 0:02:58]}  cxd5 {[%clk 0:02:55]} 8. c4 {[%clk 0:02:48]}  b6 {[%clk 0:02:37]} 9. cxd5 {[%clk 0:02:43]}  exd5 {[%clk 0:02:30]} 10. Bb5+ {[%clk 0:02:36]}  Nbd7 {[%clk 0:02:08]} 11. a4 {[%clk 0:02:24]}  O-O {[%clk 0:02:08]} 12. Ba3 {[%clk 0:02:24]}  Re8 {[%clk 0:02:09]} 13. Bc6 {[%clk 0:02:20]}  Ba6 {[%clk 0:01:37]} 14. Bxa8 {[%clk 0:02:11]}  Qxa8 {[%clk 0:01:38]} 15. Ne2 {[%clk 0:02:11]}  Qb8 {[%clk 0:01:34]} 16. h3 {[%clk 0:01:55]}  Bc4 {[%clk 0:01:07]} 17. O-O {[%clk 0:01:54]}  a6 {[%clk 0:01:02]} 18. Re1 {[%clk 0:01:52]}  b5 {[%clk 0:01:02]} 19. axb5 {[%clk 0:01:51]}  axb5 {[%clk 0:01:03]} 20. Bb4 {[%clk 0:01:49]}  Ne4 {[%clk 0:00:59]} 21. f3 {[%clk 0:01:46]}  Nd6 {[%clk 0:00:56]} 22. Ng3 {[%clk 0:01:36]}  Nf6 {[%clk 0:00:46]} 23. Ra6 {[%clk 0:01:25]}  Nde4 {[%clk 0:00:32]} 24. Nf5 {[%clk 0:01:10]}  Ng5 {[%clk 0:00:30]} 25. Qd2 {[%clk 0:01:04]}  Qc8 {[%clk 0:00:20]} 26. Rxf6 {[%clk 0:01:04]}  gxf6 {[%clk 0:00:20]} 27. Nd6 {[%clk 0:00:59]}  Qb8 {[%clk 0:00:12]} 28. Nxe8 {[%clk 0:00:53]}  Qxe8 {[%clk 0:00:08]} 29. Qf2 {[%clk 0:00:52]}  Qa8 {[%clk 0:00:08]} 30. Qg3 {[%clk 0:00:50]}  Qa4 {[%clk 0:00:08]} 31. Qd6 {[%clk 0:00:38]}  Qc2 {[%clk 0:00:05]} 32. Qf8# {[%clk 0:00:38]} 1-0


[Site "https://www.chess.com"]

[Event "Titled Tuesday Blitz July 05 Late 2022"]
[White "Svane, Rasmus"]
[Black "Iliaguev, Nisim"]
[WhiteFideId "4657101"]
[BlackFideId "2817276"]
[WhiteElo "2674"]
[BlackElo "2107"]
[Result "0-1"]
[Round "05"]
[TimeControl "180+1"]
[Date "2022.07.05"]
[WhiteClock "0:00:16"]
[BlackClock "0:00:27"]

1. Nf3 {[%clk 0:03:00]}  Nf6 {[%clk 0:02:59]} 2. g3 {[%clk 0:03:00]}  c5 {[%clk 0:02:59]} 3. Bg2 {[%clk 0:03:01]}  g6 {[%clk 0:02:59]} 4. c4 {[%clk 0:02:59]}  Bg7 {[%clk 0:03:00]} 5. Nc3 {[%clk 0:02:59]}  O-O {[%clk 0:03:00]} 6. d4 {[%clk 0:02:59]}  cxd4 {[%clk 0:03:00]} 7. Nxd4 {[%clk 0:02:59]}  Nc6 {[%clk 0:03:01]} 8. O-O {[%clk 0:02:59]}  d6 {[%clk 0:02:57]} 9. Nc2 {[%clk 0:02:53]}  Be6 {[%clk 0:02:52]} 10. b3 {[%clk 0:02:53]}  Rc8 {[%clk 0:02:52]} 11. Bb2 {[%clk 0:02:33]}  Qd7 {[%clk 0:02:52]} 12. Qd2 {[%clk 0:02:30]}  Bh3 {[%clk 0:02:50]} 13. Ne3 {[%clk 0:02:23]}  Bxg2 {[%clk 0:02:50]} 14. Kxg2 {[%clk 0:02:24]}  a6 {[%clk 0:02:48]} 15. Rfd1 {[%clk 0:02:22]}  Ne5 {[%clk 0:02:47]} 16. a4 {[%clk 0:02:13]}  h5 {[%clk 0:02:46]} 17. Ncd5 {[%clk 0:02:12]}  Nxd5 {[%clk 0:02:45]} 18. Nxd5 {[%clk 0:02:12]}  e6 {[%clk 0:02:42]} 19. Ne3 {[%clk 0:02:05]}  Rfd8 {[%clk 0:02:42]} 20. Rac1 {[%clk 0:02:03]}  h4 {[%clk 0:02:40]} 21. f4 {[%clk 0:02:00]}  Qc6+ {[%clk 0:02:07]} 22. Kf2 {[%clk 0:01:59]}  hxg3+ {[%clk 0:01:56]} 23. hxg3 {[%clk 0:02:00]}  Nd7 {[%clk 0:01:47]} 24. Bxg7 {[%clk 0:01:59]}  Kxg7 {[%clk 0:01:48]} 25. Qxd6 {[%clk 0:01:58]}  Qxd6 {[%clk 0:01:43]} 26. Rxd6 {[%clk 0:01:59]}  Nc5 {[%clk 0:01:44]} 27. Rb6 {[%clk 0:01:21]}  Rd2 {[%clk 0:01:44]} 28. Kf3 {[%clk 0:01:14]}  Rb2 {[%clk 0:01:39]} 29. b4 {[%clk 0:01:11]}  Nxa4 {[%clk 0:01:34]} 30. Rxb7 {[%clk 0:01:11]}  Nc5 {[%clk 0:01:19]} 31. Rb6 {[%clk 0:01:11]}  Nd7 {[%clk 0:01:08]} 32. Rxa6 {[%clk 0:00:53]}  Rxb4 {[%clk 0:01:08]} 33. Ra7 {[%clk 0:00:53]}  Nf6 {[%clk 0:01:04]} 34. Rd1 {[%clk 0:00:48]}  Rb3 {[%clk 0:00:53]} 35. Rd3 {[%clk 0:00:48]}  Rb6 {[%clk 0:00:51]} 36. g4 {[%clk 0:00:47]}  g5 {[%clk 0:00:48]} 37. fxg5 {[%clk 0:00:47]}  Nh7 {[%clk 0:00:46]} 38. Kf4 {[%clk 0:00:43]}  Rc5 {[%clk 0:00:43]} 39. Rd8 {[%clk 0:00:30]}  Nxg5 {[%clk 0:00:40]} 40. Raa8 {[%clk 0:00:26]}  Kf6 {[%clk 0:00:39]} 41. Rdc8 {[%clk 0:00:25]}  Re5 {[%clk 0:00:29]} 42. Re8 {[%clk 0:00:19]}  Re4+ {[%clk 0:00:28]} 43. Kg3 {[%clk 0:00:18]}  Rxe3+ {[%clk 0:00:28]} 44. Kf2 {[%clk 0:00:19]}  Re4 {[%clk 0:00:25]} 45. c5 {[%clk 0:00:19]}  Rb2 {[%clk 0:00:25]} 46. c6 {[%clk 0:00:16]}  Rexe2+ {[%clk 0:00:26]} 47. Kf1 {[%clk 0:00:14]}  Rf2+ {[%clk 0:00:26]} 48. Ke1 {[%clk 0:00:15]}  Nf3+ {[%clk 0:00:26]} 49. Kd1 {[%clk 0:00:16]}  Rf1# {[%clk 0:00:27]} 0-1


[Site "https://www.chess.com"]

[Event "Titled Tuesday Blitz July 05 Late 2022"]
[White "Swiercz, Dariusz"]
[Black "Fedoseev, Vladimir"]
[WhiteFideId "1126881"]
[BlackFideId "24130737"]
[WhiteElo "2627"]
[BlackElo "2726"]
[Result "1-0"]
[Round "05"]
[TimeControl "180+1"]
[Date "2022.07.05"]
[WhiteClock "0:00:05"]
[BlackClock "0:00:06"]

1. d4 {[%clk 0:02:59]}  Nf6 {[%clk 0:02:59]} 2. c4 {[%clk 0:02:58]}  e6 {[%clk 0:02:59]} 3. Nf3 {[%clk 0:02:59]}  d5 {[%clk 0:02:58]} 4. Nc3 {[%clk 0:02:59]}  Bb4 {[%clk 0:02:53]} 5. e3 {[%clk 0:02:56]}  O-O {[%clk 0:02:52]} 6. Bd2 {[%clk 0:02:57]}  b6 {[%clk 0:02:45]} 7. cxd5 {[%clk 0:02:56]}  exd5 {[%clk 0:02:44]} 8. Bd3 {[%clk 0:02:57]}  c5 {[%clk 0:02:34]} 9. h3 {[%clk 0:02:55]}  Nc6 {[%clk 0:02:31]} 10. a3 {[%clk 0:02:53]}  Bxc3 {[%clk 0:02:24]} 11. Bxc3 {[%clk 0:02:53]}  Ne4 {[%clk 0:02:21]} 12. Rc1 {[%clk 0:02:22]}  Re8 {[%clk 0:02:17]} 13. O-O {[%clk 0:02:17]}  c4 {[%clk 0:02:16]} 14. Bxe4 {[%clk 0:02:10]}  Rxe4 {[%clk 0:02:16]} 15. Ne5 {[%clk 0:02:10]}  Ne7 {[%clk 0:02:07]} 16. Qd2 {[%clk 0:01:59]}  f6 {[%clk 0:02:04]} 17. f3 {[%clk 0:01:57]}  Rh4 {[%clk 0:02:02]} 18. Ng4 {[%clk 0:01:58]}  Bxg4 {[%clk 0:01:56]} 19. hxg4 {[%clk 0:01:49]}  Qc7 {[%clk 0:01:55]} 20. Kf2 {[%clk 0:01:43]}  f5 {[%clk 0:01:54]} 21. g5 {[%clk 0:01:22]}  Rh5 {[%clk 0:01:33]} 22. f4 {[%clk 0:01:06]}  Nc8 {[%clk 0:01:33]} 23. Qe2 {[%clk 0:00:58]}  g6 {[%clk 0:01:29]} 24. Qf3 {[%clk 0:00:39]}  Qf7 {[%clk 0:01:29]} 25. Bb4 {[%clk 0:00:24]}  a5 {[%clk 0:01:26]} 26. Rxc4 {[%clk 0:00:25]}  axb4 {[%clk 0:01:20]} 27. Rc6 {[%clk 0:00:25]}  bxa3 {[%clk 0:01:08]} 28. bxa3 {[%clk 0:00:19]}  Ne7 {[%clk 0:01:05]} 29. Rf6 {[%clk 0:00:11]}  Qe8 {[%clk 0:01:02]} 30. Rc1 {[%clk 0:00:11]}  Rc8 {[%clk 0:00:43]} 31. Qd1 {[%clk 0:00:06]}  b5 {[%clk 0:00:41]} 32. Rc5 {[%clk 0:00:06]}  h6 {[%clk 0:00:34]} 33. Re6 {[%clk 0:00:05]}  Kf7 {[%clk 0:00:27]} 34. Rf6+ {[%clk 0:00:05]}  Kg7 {[%clk 0:00:27]} 35. Re6 {[%clk 0:00:06]}  hxg5 {[%clk 0:00:16]} 36. Rxc8 {[%clk 0:00:05]}  Qxc8 {[%clk 0:00:15]} 37. Rxe7+ {[%clk 0:00:05]}  Kf6 {[%clk 0:00:16]} 38. Re5 {[%clk 0:00:04]}  Qc4 {[%clk 0:00:15]} 39. Qe2 {[%clk 0:00:03]}  gxf4 {[%clk 0:00:15]} 40. exf4 {[%clk 0:00:03]}  Qxd4+ {[%clk 0:00:15]} 41. Kg3 {[%clk 0:00:04]}  Qc3+ {[%clk 0:00:11]} 42. Re3 {[%clk 0:00:05]}  Qc6 {[%clk 0:00:09]} 43. Qb2+ {[%clk 0:00:05]}  Kf7 {[%clk 0:00:09]} 44. Qe5 {[%clk 0:00:06]}  Qd7 {[%clk 0:00:06]} 45. Rc3 {[%clk 0:00:05]} 1-0


[Site "https://www.chess.com"]

[Event "Titled Tuesday Blitz July 05 Late 2022"]
[White "Taboas Rodriguez, Daniel"]
[Black "Rostovtsev, Dmitry"]
[WhiteFideId "2208466"]
[BlackFideId "34278320"]
[WhiteElo "2429"]
[BlackElo "2232"]
[Result "1/2-1/2"]
[Round "05"]
[TimeControl "180+1"]
[Date "2022.07.06"]
[WhiteClock "0:00:13"]
[BlackClock "0:00:01"]

1. d4 {[%clk 0:02:59]}  Nf6 {[%clk 0:03:00]} 2. Nf3 {[%clk 0:02:59]}  g6 {[%clk 0:03:00]} 3. c4 {[%clk 0:02:59]}  Bg7 {[%clk 0:03:01]} 4. Nc3 {[%clk 0:02:59]}  d5 {[%clk 0:03:01]} 5. cxd5 {[%clk 0:03:00]}  Nxd5 {[%clk 0:03:02]} 6. e4 {[%clk 0:03:00]}  Nxc3 {[%clk 0:03:02]} 7. bxc3 {[%clk 0:03:01]}  c5 {[%clk 0:03:03]} 8. Be3 {[%clk 0:03:01]}  O-O {[%clk 0:03:04]} 9. Be2 {[%clk 0:03:01]}  Qa5 {[%clk 0:03:00]} 10. O-O {[%clk 0:03:01]}  Rd8 {[%clk 0:02:58]} 11. Qb3 {[%clk 0:03:01]}  b6 {[%clk 0:02:54]} 12. Rad1 {[%clk 0:02:59]}  Nc6 {[%clk 0:02:38]} 13. Bc4 {[%clk 0:02:42]}  Rf8 {[%clk 0:02:27]} 14. Qb5 {[%clk 0:02:28]}  Bb7 {[%clk 0:01:35]} 15. dxc5 {[%clk 0:02:27]}  Bxc3 {[%clk 0:01:18]} 16. Rd7 {[%clk 0:02:05]}  Nd8 {[%clk 0:01:17]} 17. cxb6 {[%clk 0:01:52]}  axb6 {[%clk 0:01:15]} 18. Bxb6 {[%clk 0:01:53]}  Qxb5 {[%clk 0:01:10]} 19. Bxb5 {[%clk 0:01:53]}  Bxe4 {[%clk 0:01:10]} 20. a4 {[%clk 0:01:36]}  Bf6 {[%clk 0:00:53]} 21. Rfd1 {[%clk 0:01:13]}  Nc6 {[%clk 0:00:29]} 22. Rc7 {[%clk 0:01:00]}  Na5 {[%clk 0:00:18]} 23. Re1 {[%clk 0:00:55]}  Bf5 {[%clk 0:00:17]} 24. Bc5 {[%clk 0:00:48]}  Be6 {[%clk 0:00:13]} 25. Bxe7 {[%clk 0:00:44]}  Bxe7 {[%clk 0:00:14]} 26. Rxe7 {[%clk 0:00:45]}  Nc4 {[%clk 0:00:15]} 27. R7xe6 {[%clk 0:00:42]}  fxe6 {[%clk 0:00:15]} 28. Bxc4 {[%clk 0:00:43]}  Rxa4 {[%clk 0:00:15]} 29. Bxe6+ {[%clk 0:00:43]}  Kg7 {[%clk 0:00:16]} 30. h4 {[%clk 0:00:40]}  Re8 {[%clk 0:00:16]} 31. Bb3 {[%clk 0:00:38]}  Rxe1+ {[%clk 0:00:13]} 32. Nxe1 {[%clk 0:00:38]}  Rxh4 {[%clk 0:00:13]} 33. g3 {[%clk 0:00:39]}  Rb4 {[%clk 0:00:13]} 34. Bc2 {[%clk 0:00:38]}  h6 {[%clk 0:00:13]} 35. Kg2 {[%clk 0:00:37]}  Rc4 {[%clk 0:00:12]} 36. Bd3 {[%clk 0:00:37]}  Rd4 {[%clk 0:00:13]} 37. Be2 {[%clk 0:00:37]}  g5 {[%clk 0:00:13]} 38. Nd3 {[%clk 0:00:36]}  Re4 {[%clk 0:00:14]} 39. Bf3 {[%clk 0:00:35]}  Re7 {[%clk 0:00:14]} 40. Nc5 {[%clk 0:00:35]}  Kf6 {[%clk 0:00:14]} 41. Ne4+ {[%clk 0:00:35]}  Ke5 {[%clk 0:00:15]} 42. Nd2 {[%clk 0:00:34]}  Rf7 {[%clk 0:00:15]} 43. Bg4 {[%clk 0:00:33]}  Kf6 {[%clk 0:00:14]} 44. Ne4+ {[%clk 0:00:33]}  Kg7 {[%clk 0:00:14]} 45. Bh5 {[%clk 0:00:33]}  Re7 {[%clk 0:00:13]} 46. Kf3 {[%clk 0:00:33]}  Re5 {[%clk 0:00:14]} 47. g4 {[%clk 0:00:33]}  Ra5 {[%clk 0:00:13]} 48. Ng3 {[%clk 0:00:33]}  Ra4 {[%clk 0:00:11]} 49. Nf5+ {[%clk 0:00:33]}  Kh7 {[%clk 0:00:12]} 50. Ke3 {[%clk 0:00:32]}  Ra3+ {[%clk 0:00:10]} 51. Ke4 {[%clk 0:00:32]}  Ra2 {[%clk 0:00:11]} 52. f3 {[%clk 0:00:31]}  Ra4+ {[%clk 0:00:11]} 53. Ke5 {[%clk 0:00:30]}  Ra3 {[%clk 0:00:11]} 54. Nd4 {[%clk 0:00:30]}  Kg7 {[%clk 0:00:11]} 55. Ke4 {[%clk 0:00:30]}  Ra4 {[%clk 0:00:10]} 56. Be8 {[%clk 0:00:30]}  Rb4 {[%clk 0:00:10]} 57. Bc6 {[%clk 0:00:30]}  Rc4 {[%clk 0:00:10]} 58. Bd5 {[%clk 0:00:30]}  Rb4 {[%clk 0:00:10]} 59. Ke5 {[%clk 0:00:30]}  Ra4 {[%clk 0:00:09]} 60. Nf5+ {[%clk 0:00:31]}  Kg6 {[%clk 0:00:09]} 61. Be4 {[%clk 0:00:29]}  Ra5+ {[%clk 0:00:09]} 62. Ke6 {[%clk 0:00:29]}  h5 {[%clk 0:00:06]} 63. Ng3+ {[%clk 0:00:28]}  Kh6 {[%clk 0:00:07]} 64. gxh5 {[%clk 0:00:26]}  Ra6+ {[%clk 0:00:04]} 65. Ke5 {[%clk 0:00:23]}  Ra5+ {[%clk 0:00:04]} 66. Kd4 {[%clk 0:00:24]}  Ra4+ {[%clk 0:00:04]} 67. Ke3 {[%clk 0:00:24]}  Ra3+ {[%clk 0:00:05]} 68. Kf2 {[%clk 0:00:25]}  Ra2+ {[%clk 0:00:05]} 69. Kg1 {[%clk 0:00:24]}  Kg7 {[%clk 0:00:03]} 70. Bg6 {[%clk 0:00:23]}  Kf6 {[%clk 0:00:02]} 71. Be4 {[%clk 0:00:23]}  Ke5 {[%clk 0:00:02]} 72. h6 {[%clk 0:00:24]}  Kf6 {[%clk 0:00:02]} 73. h7 {[%clk 0:00:23]}  Kg7 {[%clk 0:00:02]} 74. Nh5+ {[%clk 0:00:22]}  Kh8 {[%clk 0:00:02]} 75. Nf6 {[%clk 0:00:22]}  Ra7 {[%clk 0:00:01]} 76. Kg2 {[%clk 0:00:21]}  Rf7 {[%clk 0:00:02]} 77. Ng4 {[%clk 0:00:21]}  Rf4 {[%clk 0:00:02]} 78. Kg3 {[%clk 0:00:22]}  Kg7 {[%clk 0:00:02]} 79. Nf2 {[%clk 0:00:20]}  Rf8 {[%clk 0:00:02]} 80. Nh3 {[%clk 0:00:21]}  Kh6 {[%clk 0:00:01]} 81. Kg4 {[%clk 0:00:20]}  Re8 {[%clk 0:00:01]} 82. Nxg5 {[%clk 0:00:20]}  Kg7 {[%clk 0:00:02]} 83. Kh5 {[%clk 0:00:20]}  Re5 {[%clk 0:00:01]} 84. f4 {[%clk 0:00:19]}  Ra5 {[%clk 0:00:01]} 85. Kg4 {[%clk 0:00:17]}  Ra6 {[%clk 0:00:01]} 86. Bf5 {[%clk 0:00:16]}  Rh6 {[%clk 0:00:01]} 87. Ne6+ {[%clk 0:00:15]}  Kf6 {[%clk 0:00:01]} 88. Nd4 {[%clk 0:00:14]}  Kg7 {[%clk 0:00:02]} 89. Nf3 {[%clk 0:00:14]}  Kf6 {[%clk 0:00:02]} 90. Ng5 {[%clk 0:00:14]}  Kg7 {[%clk 0:00:02]} 91. Bd3 {[%clk 0:00:15]}  Kf6 {[%clk 0:00:03]} 92. Kf3 {[%clk 0:00:15]}  Kg7 {[%clk 0:00:02]} 93. Ke4 {[%clk 0:00:15]}  Kf6 {[%clk 0:00:02]} 94. Kd4 {[%clk 0:00:15]}  Rh4 {[%clk 0:00:03]} 95. Bc4 {[%clk 0:00:14]}  Rxf4+ {[%clk 0:00:02]} 96. Ne4+ {[%clk 0:00:12]}  Kg7 {[%clk 0:00:02]} 97. Bg8 {[%clk 0:00:11]}  Rxe4+ {[%clk 0:00:01]} 98. Kxe4 {[%clk 0:00:12]}  Kh8 {[%clk 0:00:02]} 99. Kf5 {[%clk 0:00:12]}  Kg7 {[%clk 0:00:03]} 100. Kg4 {[%clk 0:00:12]}  Kh8 {[%clk 0:00:03]} 101. Kh5 {[%clk 0:00:12]}  Kg7 {[%clk 0:00:04]} 102. Be6 {[%clk 0:00:13]}  Kxh7 {[%clk 0:00:01]} 1/2-1/2


[Site "https://www.chess.com"]